bitfinex-derivatives/quotes_ETHF0:USTF0_20250217
["timestamp","ask_amount","ask_price","bid_price","bid_amount"]
[1739808232771,4.5697,2752.7,2752.1,3.2078]
[1739808233277,3.449,2753.3,2752.8,0.72641]
[1739808233575,4.5697,2754.0,2753.2,3.2078]
[1739808233764,4.5697,2754.0,2753.9,3.2078]
[1739808234083,0.72613,2754.0,2753.7,0.00545296]
[1739808234275,6.6598,2754.2,2753.7,0.00545296]
[1739808234468,0.72615,2753.9,2753.7,0.00545296]
[1739808234666,6.6598,2754.2,2753.7,0.00545296]
[1739808234867,3.2078,2754.2,2753.7,0.00545296]
[1739808235075,0.72612,2754.0,2753.7,0.00545296]
[1739808235266,0.72609,2754.1,2753.7,0.00545296]
[1739808235465,0.7261,2754.1,2753.7,0.00545296]
[1739808235771,6.6478,2754.2,2753.7,0.00545296]
[1739808236276,0.72616,2753.8,2753.7,0.00545296]
[1739808236575,3.93396,2753.8,2753.7,0.00545296]
[1739808236975,9.2078,2753.8,2752.3,3.2078]
[1739808237169,6.6408,2753.7,2752.6,3.2078]
[1739808237470,6.6408,2753.7,2752.3,3.2078]
[1739808237471,0.72638,2753.0,2752.3,3.2078]
[1739808237776,0.72642,2752.9,2752.3,3.2078]
[1739808237975,0.72641,2752.9,2752.3,3.2078]
[1739808238276,0.72645,2752.7,2752.3,3.21325296]
[1739808238481,0.72644,2752.8,2752.3,3.21325296]
[1739808238776,0.72642,2752.8,2752.3,3.21325296]
[1739808239076,0.00545296,2752.9,2752.3,3.21325296]
[1739808239372,0.00545296,2752.9,2752.6,3.2078]
[1739808239966,0.00545296,2752.9,2752.3,3.43145296]
[1739808239967,0.72823698,2752.7,2752.3,0.00545296]
[1739808240172,0.00178698,2752.7,2752.3,0.00545296]
[1739808240674,3.93433,2752.4,2752.3,0.00545296]
[1739808240971,6.6658,2752.4,2751.1,3.2078]
[1739808241172,3.2078,2752.3,2751.2,0.72683]
[1739808241583,3.93437,2752.3,2751.5,3.2078]
[1739808241768,3.2078,2752.3,2751.5,3.2078]
[1739808241966,3.2078,2752.3,2750.7,4.92841839]
[1739808241967,0.7267,2751.8,2751.6,0.00545296]
[1739808242274,3.2078,2752.3,2751.6,0.73219296]
[1739808242481,3.2078,2752.3,2751.6,3.21325296]
[1739808242671,4.56738698,2752.7,2751.6,3.21325296]
[1739808242672,6.66358698,2752.7,2751.9,3.2078]
[1739808243276,3.45578698,2752.7,2751.9,3.2078]
[1739808243474,0.72652,2752.5,2751.9,3.2078]
[1739808243674,0.00178698,2752.7,2752.2,3.2078]
[1739808244180,0.72648,2752.6,2751.9,3.93444]
[1739808244375,0.00178698,2752.7,2752.2,3.2078]
[1739808244578,0.72823698,2752.7,2752.2,3.2078]
[1739808244775,3.20958698,2752.7,2751.6,4.31615296]
[1739808244979,0.00178698,2752.7,2752.2,3.2078]
[1739808245773,0.72823698,2752.7,2752.2,3.2078]
[1739808245973,0.00178698,2752.7,2752.2,3.2078]
[1739808246375,0.72649,2752.6,2752.2,3.2078]
[1739808246574,0.00178698,2752.7,2752.2,3.2078]
[1739808246775,3.2078,2752.5,2751.6,0.00545296]
[1739808246973,0.72671,2751.7,2751.6,0.00545296]
[1739808247172,3.2078,2751.8,2751.6,0.00545296]
[1739808247375,3.2078,2752.5,2751.6,0.00545296]
[1739808247577,3.433,2752.4,2751.9,0.72665]
[1739808247878,0.00178698,2752.7,2751.9,3.2078]
[1739808248282,3.2078,2752.6,2751.8,3.2078]
[1739808248471,0.72662,2752.1,2751.6,3.43845296]
[1739808248672,0.72663,2752.1,2751.6,0.00545296]
[1739808248877,0.72661,2752.2,2751.6,0.00545296]
[1739808249086,3.437,2752.4,2751.6,0.00545296]
[1739808249276,0.72671,2751.7,2751.6,0.00545296]
[1739808249470,3.2078,2751.8,2751.0,3.2078]
[1739808249678,4.4575,2751.7,2751.0,3.2078]
[1739808249877,8.8213,2751.7,2751.0,3.2078]
[1739808250080,3.2078,2751.5,2750.4,23.3498]
[1739808250580,3.2078,2751.5,2750.8,0.72693]
[1739808250775,0.00545296,2751.2,2751.1,0.72686]
[1739808250977,0.00545296,2751.2,2751.0,3.2078]
[1739808251174,0.00545296,2751.2,2751.1,0.72687]
[1739808251378,0.00545296,2751.2,2751.1,3.93467]
[1739808251573,3.2078,2752.4,2751.1,3.2078]
[1739808251780,7.5716,2752.5,2751.6,3.2078]
[1739808251974,0.72666,2752.0,2751.6,3.2078]
[1739808252181,3.2078,2752.2,2751.3,3.2078]
[1739808252681,3.2078,2752.2,2751.7,3.2078]
[1739808252682,0.7266,2752.2,2751.7,3.2078]
[1739808252871,7.8238,2752.5,2751.7,3.2078]
[1739808252872,0.00545296,2752.0,2751.7,3.2078]
[1739808253278,0.00545296,2752.0,2751.4,3.2078]
[1739808253474,0.72675,2751.6,2751.1,3.2078]
[1739808253676,3.21325296,2752.0,2751.1,3.2078]
[1739808253677,7.5968,2751.9,2751.1,3.2078]
[1739808254475,3.2078,2751.7,2750.7,0.00545296]
[1739808254675,4.3019,2751.6,2750.7,0.00545296]
[1739808254882,0.72678,2751.5,2750.9,0.72692]
[1739808255085,3.451,2751.4,2751.1,0.72686]
[1739808255275,7.7529,2751.6,2751.1,0.72685]
[1739808255475,4.3019,2751.6,2750.9,3.2078]
[1739808255675,0.72686,2751.2,2750.9,3.2078]
[1739808255874,3.2078,2751.1,2750.7,0.00545296]
[1739808256080,3.446,2751.2,2750.7,0.00545296]
[1739808256684,0.72693,2750.9,2750.7,0.00545296]
[1739808256886,3.446,2751.2,2750.7,0.00545296]
[1739808257285,3.446,2751.2,2750.7,0.73242296]
[1739808257582,3.446,2751.2,2750.7,0.00545296]
[1739808258179,4.3019,2751.6,2751.3,0.7268]
[1739808258388,3.434,2751.8,2751.1,3.2078]
[1739808258588,4.1398,2751.9,2751.4,3.2078]
[1739808258886,4.5307,2752.1,2751.4,3.2078]
[1739808258887,4.16410296,2752.0,2751.4,3.2078]
[1739808259183,4.16410296,2752.0,2751.9,0.72666]
[1739808259184,3.43745296,2752.0,2751.9,0.72666]
[1739808259487,0.00545296,2752.0,2751.8,3.2078]
[1739808259685,0.00545296,2752.0,2751.9,0.72666]
[1739808260084,3.427,2753.1,2751.9,0.72666]
[1739808260085,3.2078,2753.8,2751.9,6.0]
[1739808260283,3.2078,2753.8,2753.2,0.7263]
[1739808260483,3.447,2753.9,2753.6,3.2078]
[1739808260689,8.9578,2754.0,2753.6,3.2078]
[1739808261277,0.00545296,2754.1,2753.9,3.2078]
[1739808261687,0.00545296,2754.1,2753.6,3.2078]
[1739808261993,0.73153296,2754.1,2753.6,3.2078]
[1739808262188,0.00545296,2754.1,2753.6,3.2078]
[1739808262378,0.72619,2753.7,2753.6,3.2078]
[1739808262583,4.283,2754.0,2753.6,3.2078]
[1739808262790,3.44045296,2754.1,2753.6,3.2078]
[1739808262791,0.00545296,2754.1,2753.6,3.2078]
[1739808262995,0.00545296,2754.1,2753.9,3.2078]
[1739808263285,0.00545296,2754.1,2754.0,0.72611]
[1739808263593,3.2078,2755.9,2754.0,7.58728818]
[1739808263781,3.439,2755.8,2755.1,3.2078]
[1739808263986,0.72567,2755.7,2755.1,3.2078]
[1739808264382,3.439,2755.8,2755.1,3.2078]
[1739808264582,0.72568,2755.7,2755.1,3.21325296]
[1739808264786,3.439,2755.8,2755.1,3.21325296]
[1739808265088,3.2078,2755.9,2755.1,3.21325296]
[1739808265283,4.283,2756.1,2755.8,3.2078]
[1739808265485,4.283,2756.1,2755.4,3.2078]
[1739808265990,4.283,2756.1,2755.8,3.2078]
[1739808266283,0.72542,2756.6,2755.8,3.2078]
[1739808266485,3.446,2756.9,2756.1,3.2078]
[1739808266678,7.6206,2757.1,2756.1,3.2078]
[1739808266879,4.4128,2757.1,2756.4,3.2078]
[1739808267082,4.4128,2757.1,2756.4,3.93327]
[1739808267285,4.16924,2757.3,2756.7,3.2078]
[1739808267487,3.444,2757.3,2756.7,3.2078]
[1739808267883,3.2078,2757.8,2756.7,3.2078]
[1739808268084,3.437,2757.7,2756.7,3.2078]
[1739808268279,3.437,2757.7,2756.8,3.2078]
[1739808268280,3.2078,2757.5,2756.8,3.2078]
[1739808268487,3.2078,2757.5,2756.3,0.00544277]
[1739808268686,3.445,2757.4,2756.8,3.2078]
[1739808269190,3.2078,2757.8,2756.8,3.2078]
[1739808269389,4.5315,2758.1,2757.4,3.2078]
[1739808269590,7.6609,2758.7,2757.7,3.2078]
[1739808270092,3.2078,2758.5,2757.9,0.00544277]
[1739808270488,0.725,2758.2,2757.9,0.00544277]
[1739808270687,3.2078,2758.5,2757.9,0.00544277]
[1739808270889,0.72505,2758.0,2757.9,0.00544277]
[1739808271085,3.44,2758.4,2757.9,0.00544277]
[1739808271293,0.72505,2758.0,2757.9,0.00544277]
[1739808271789,6.0,2758.0,2756.8,3.2078]
[1739808271987,0.72525,2757.3,2756.8,3.2078]
[1739808272193,40.8,2757.6,2757.1,3.2078]
[1739808272392,40.8,2757.6,2757.5,3.2078]
[1739808272687,0.72528,2757.2,2756.7,3.2078]
[1739808272887,3.2078,2757.2,2756.3,3.2078]
[1739808273095,0.72536,2756.9,2756.3,3.2078]
[1739808273291,3.2078,2757.2,2756.5,0.00544277]
[1739808273696,3.2078,2756.9,2756.5,0.00544277]
[1739808273999,0.72542,2756.6,2756.5,0.00544277]
[1739808274194,3.93322,2756.6,2756.5,0.00544277]
[1739808274394,9.93322,2756.6,2756.5,0.00544277]
[1739808274596,3.2078,2756.6,2755.7,3.2078]
[1739808274898,3.2078,2756.6,2756.0,3.2078]
[1739808275399,0.72549,2756.4,2756.0,3.2078]
[1739808275591,3.2078,2756.6,2755.7,3.2078]
[1739808275893,3.21324277,2756.6,2756.0,3.21324277]
[1739808276096,3.21324277,2756.6,2756.0,0.00544277]
[1739808276296,0.72555,2756.1,2756.0,0.00544277]
[1739808276695,3.21324277,2756.6,2756.0,0.00544277]
[1739808277193,0.72546,2756.5,2756.0,0.00544277]
[1739808277400,4.14449,2756.4,2756.0,3.21324277]
[1739808277587,4.14449,2756.4,2756.0,0.00544277]
[1739808277588,3.419,2756.4,2756.0,0.00544277]
[1739808277891,4.14448,2756.4,2756.0,3.21324277]
[1739808278294,3.419,2756.4,2756.0,0.00544277]
[1739808278592,6.62924277,2756.6,2756.0,3.21324277]
[1739808278999,6.62924277,2756.6,2756.0,0.00544277]
[1739808279207,7.35467277,2756.6,2756.0,0.00544277]
[1739808279504,0.72551,2756.3,2756.0,0.00544277]
[1739808279707,3.42144277,2756.6,2756.0,3.21324277]
[1739808280010,0.00544277,2756.6,2756.3,3.2078]
[1739808280308,0.00544277,2756.6,2756.0,3.21324277]
[1739808280496,0.00544277,2756.6,2756.4,3.2078]
[1739808281010,3.2078,2757.8,2756.4,3.2078]
[1739808281511,5.02071,2757.6,2756.4,3.2078]
[1739808281805,3.2078,2757.6,2756.4,3.2078]
[1739808282006,8.782,2757.9,2756.7,3.2078]
[1739808282007,0.72533,2757.0,2756.7,3.2078]
[1739808282205,3.2078,2757.2,2756.4,3.2078]
[1739808282505,0.72541,2756.7,2756.4,3.2078]
[1739808282705,3.2078,2757.2,2756.4,3.2078]
[1739808282906,0.72542,2756.6,2756.4,3.2078]
[1739808283215,3.2078,2756.8,2756.0,0.00544277]
[1739808283407,3.2078,2756.8,2756.0,3.21324277]
[1739808283706,0.72541,2756.7,2756.0,3.21324277]
[1739808283910,0.72538,2756.8,2756.1,0.72554]
[1739808284209,0.0054088,2757.3,2756.6,3.2078]
[1739808284512,0.0054088,2757.3,2756.9,3.2078]
[1739808285408,0.0054088,2757.3,2757.2,3.93306]
[1739808285809,0.0054088,2757.3,2756.9,7.88013444]
[1739808286011,0.0054088,2757.3,2757.2,3.2078]
[1739808286505,6.6238,2758.2,2757.2,9.2078]
[1739808286811,6.6238,2758.2,2757.1,3.415]
[1739808286812,0.72497,2758.4,2757.5,3.2078]
[1739808287109,5.14822,2758.5,2757.8,3.2078]
[1739808287316,3.2078,2758.6,2757.7,7.88013444]
[1739808287706,3.2078,2758.6,2757.9,0.00544277]
[1739808287908,3.2078,2758.6,2757.9,3.21324277]
[1739808288109,3.2078,2758.5,2757.9,0.00544277]
[1739808288309,0.72496,2758.4,2757.9,0.00544277]
[1739808288504,3.415,2758.7,2757.9,0.00544277]
[1739808288505,0.72492,2758.6,2757.9,0.73052277]
[1739808288812,3.2078,2758.8,2758.0,3.2078]
[1739808288813,4.13989,2758.7,2758.0,3.2078]
[1739808289008,3.415,2759.3,2758.3,3.2078]
[1739808289212,0.72474,2759.2,2758.4,0.72494]
[1739808289415,3.414,2759.3,2758.6,3.2078]
[1739808289810,0.72478,2759.1,2758.6,3.2078]
[1739808290211,0.72475,2759.2,2758.6,3.2078]
[1739808290412,7.3465,2759.4,2758.7,0.72487]
[1739808290613,6.6218,2759.4,2758.6,3.2078]
[1739808290919,0.72473,2759.3,2758.6,3.2078]
[1739808291116,3.2078,2759.4,2758.6,3.2078]
[1739808291613,3.2078,2761.1,2759.3,7.88013444]
[1739808291914,14.8993331,2762.2,2759.6,3.2078]
[1739808291915,3.2078,2760.3,2759.6,3.2078]
[1739808292115,3.2078,2760.1,2759.9,0.00544277]
[1739808292306,0.72453,2760.0,2759.9,0.00544277]
[1739808292507,0.72473,2759.3,2758.7,10.63300534]
[1739808292715,3.2078,2759.4,2758.7,3.2078]
[1739808292919,0.72471,2759.3,2758.7,3.2078]
[1739808293108,7.34649,2759.4,2758.7,3.2078]
[1739808293311,6.6218,2759.4,2758.7,3.2078]
[1739808293512,0.72477,2759.1,2758.7,3.2078]
[1739808293810,3.2078,2758.8,2758.1,3.2078]
[1739808294010,3.414,2758.9,2758.6,0.00544277]
[1739808294212,0.00544277,2759.3,2758.6,0.73034277]
[1739808294411,0.00544277,2759.3,2758.7,3.2078]
[1739808294925,3.21324277,2759.3,2758.6,0.00544277]
[1739808295213,0.00544277,2759.3,2758.6,0.00544277]
[1739808295418,0.00544277,2759.3,2758.8,3.2078]
[1739808296017,0.00544277,2759.3,2759.1,3.2078]
[1739808296421,0.00544277,2759.3,2759.1,3.93255]
[1739808296617,0.00544277,2759.3,2759.1,3.2078]
[1739808296812,0.00544277,2759.3,2758.6,7.58254277]
[1739808296813,0.00544277,2759.3,2758.6,7.36634277]
[1739808297013,3.21324277,2759.3,2758.6,7.36634277]
[1739808297216,3.21324277,2759.3,2758.6,8.09121277]
[1739808297423,3.21324277,2759.3,2758.6,7.36634277]
[1739808297919,3.2078,2759.0,2758.6,3.21324277]
[1739808298124,3.2078,2759.0,2758.6,0.00544277]
[1739808298323,3.2078,2758.7,2758.6,0.00544277]
[1739808298522,3.93267,2758.7,2758.6,0.00544277]
[1739808298826,3.2078,2758.7,2758.6,0.00544277]
[1739808299624,3.2078,2759.0,2758.6,0.00544277]
[1739808299924,3.413,2759.1,2758.6,0.00544277]
[1739808300119,0.00544277,2759.3,2758.7,3.2078]
[1739808300427,3.2078,2759.0,2758.6,0.00544277]
[1739808300620,3.9326,2759.0,2758.6,0.00544277]
[1739808300823,3.2078,2759.0,2758.8,0.72484]
[1739808301024,0.00544277,2759.3,2759.2,0.72474]
[1739808301323,0.00544277,2759.3,2758.6,7.88557721]
[1739808301723,0.00544277,2759.3,2758.9,3.2078]
[1739808301920,0.00544277,2759.3,2759.2,3.93254]
[1739808302116,6.6208,2760.2,2759.2,3.2078]
[1739808302322,3.2078,2760.5,2759.8,0.72457]
[1739808302530,3.413,2760.6,2759.8,3.2078]
[1739808302826,8.1648,2760.7,2759.5,3.2078]
[1739808303029,3.2078,2760.2,2759.5,3.2078]
[1739808303421,3.2078,2760.6,2759.5,3.2078]
[1739808303927,0.7244,2760.5,2759.8,3.2078]
[1739808304227,6.6198,2760.6,2759.8,3.2078]
[1739808304426,3.2078,2760.6,2759.8,7.88013444]
[1739808304628,3.93218,2760.6,2759.8,7.88013444]
[1739808304824,10.7531,2761.2,2760.1,3.2078]
[1739808305228,3.2078,2760.7,2759.6,3.2078]
[1739808305428,0.72442,2760.5,2760.4,0.00544277]
[1739808305626,3.412,2760.6,2760.4,0.00544277]
[1739808305831,0.7244,2760.5,2760.4,0.00544277]
[1739808306127,7.3411,2761.2,2760.4,0.00544277]
[1739808306330,3.2078,2761.2,2760.6,3.2078]
[1739808306725,3.2078,2761.6,2760.6,3.2078]
[1739808306925,3.2078,2761.6,2760.9,3.2078]
[1739808307125,4.13607,2761.8,2760.9,3.2078]
[1739808307327,3.2078,2762.0,2761.3,0.72417]
[1739808307535,8.2398,2762.2,2761.5,3.2078]
[1739808307731,11.4476,2762.2,2761.5,3.2078]
[1739808308234,3.2078,2762.2,2761.5,3.2078]
[1739808308428,3.2078,2761.7,2761.0,3.2078]
[1739808308635,3.2078,2761.3,2760.4,0.00544277]
[1739808308830,3.2078,2761.5,2760.5,3.2078]
[1739808309022,40.8,2761.4,2760.5,3.2078]
[1739808309222,4.0046,2762.5,2761.3,3.2078]
[1739808309223,3.2078,2762.2,2761.3,3.2078]
[1739808309426,3.2078,2762.2,2761.0,4.67233444]
[1739808309427,3.2078,2762.2,2761.0,7.88013444]
[1739808309639,3.2078,2762.2,2761.0,3.2078]
[1739808309828,3.2078,2761.6,2760.7,3.2078]
[1739808310027,3.2078,2762.7,2761.5,3.2078]
[1739808310228,4.67233444,2763.7,2761.4,4.67233444]
[1739808310229,3.9661,2763.0,2761.4,8.11333444]
[1739808310434,3.9661,2763.0,2761.9,3.2078]
[1739808310627,3.453,2763.2,2762.4,0.72388]
[1739808310830,7.3998,2763.4,2762.4,3.2078]
[1739808311029,3.2078,2763.9,2763.0,4.67233444]
[1739808311332,3.2078,2764.4,2763.4,4.67233444]
[1739808311533,3.2078,2764.8,2764.2,7.88013444]
[1739808311739,3.2078,2765.1,2764.3,3.2078]
[1739808312040,3.2078,2765.0,2764.3,3.2078]
[1739808312227,3.2078,2765.3,2764.3,3.2078]
[1739808312431,3.2078,2765.9,2764.7,3.2078]
[1739808312636,3.2078,2765.9,2765.0,4.67233444]
[1739808312831,3.2078,2765.3,2764.7,6.6948]
[1739808313027,3.2078,2765.3,2764.7,3.2078]
[1739808313225,3.485,2765.5,2764.2,24.76076725]
[1739808313226,3.2078,2765.0,2764.2,0.00543281]
[1739808313427,8.3651,2766.1,2764.2,0.00543281]
[1739808313428,3.2078,2764.8,2764.2,0.00543281]
[1739808313630,3.2078,2764.8,2764.3,3.2078]
[1739808313939,3.2078,2764.6,2764.2,0.00543281]
[1739808314136,33.10943444,2766.1,2764.2,0.00543281]
[1739808314137,3.2078,2765.4,2764.2,0.00543281]
[1739808314334,3.2078,2765.4,2764.5,7.88013444]
[1739808314531,3.2078,2765.1,2764.3,3.84290849]
[1739808314837,4.0666,2766.0,2764.2,6.74923281]
[1739808314838,6.7498,2765.0,2764.2,0.00543281]
[1739808315035,3.2078,2765.0,2764.3,3.2078]
[1739808315239,3.2078,2765.3,2764.5,4.67233444]
[1739808315539,3.93096,2765.3,2764.5,4.67233444]
[1739808315742,3.2078,2764.9,2764.3,3.2078]
[1739808315928,3.2078,2765.4,2764.3,3.2078]
[1739808316134,3.2078,2764.4,2764.2,0.00543281]
[1739808316837,3.93118,2764.4,2764.2,0.00543281]
[1739808317039,0.7234,2764.3,2764.2,0.00543281]
[1739808317236,40.8,2764.3,2762.7,3.2078]
[1739808317438,3.2078,2763.7,2762.6,4.67233444]
[1739808317639,3.2078,2763.1,2762.2,12.29663444]
[1739808317836,6.7698,2763.3,2762.4,3.2078]
[1739808318035,3.2078,2763.3,2762.4,3.2078]
[1739808318340,0.00539963,2763.1,2762.6,0.00543281]
[1739808318542,3.2078,2762.9,2762.6,0.00543281]
[1739808319139,3.559,2762.8,2762.6,0.00543281]
[1739808319646,3.559,2762.8,2761.6,4.67233444]
[1739808319947,0.72393,2762.3,2761.3,3.2078]
[1739808320139,0.72396,2762.2,2761.2,4.67233444]
[1739808320439,6.7668,2762.2,2761.2,4.67233444]
[1739808320945,6.7668,2762.2,2761.4,0.00543281]
[1739808321142,3.2078,2761.9,2761.4,0.00543281]
[1739808321345,4.3316,2762.1,2761.4,0.00543281]
[1739808321549,3.2078,2762.4,2761.6,4.67233444]
[1739808321849,3.2078,2762.4,2761.6,3.2078]
[1739808322038,3.2078,2762.4,2761.7,4.67233444]
[1739808322238,3.21319963,2763.1,2762.1,4.67233444]
[1739808322442,3.2078,2762.8,2762.1,4.67233444]
[1739808322642,3.2078,2762.8,2761.9,3.2078]
[1739808322842,3.2078,2762.5,2761.8,4.67233444]
[1739808323041,3.2078,2762.0,2761.6,3.2078]
[1739808323347,3.2078,2762.0,2761.4,4.67776725]
[1739808324144,0.72405,2761.9,2761.4,0.00543281]
[1739808324450,3.2078,2761.7,2761.4,0.00543281]
[1739808324645,3.9319,2761.7,2761.4,0.00543281]
[1739808324851,0.72411,2761.6,2761.4,0.00543281]
[1739808325346,3.2078,2761.7,2760.3,3.2078]
[1739808325553,3.2078,2761.0,2760.1,8.82473444]
[1739808325743,3.2078,2760.6,2760.0,3.2078]
[1739808326141,3.94,2760.9,2760.0,3.2078]
[1739808326443,7.1478,2760.9,2760.0,3.2078]
[1739808326642,3.93219,2760.6,2760.2,0.00543281]
[1739808326947,3.2078,2760.6,2760.2,0.00543281]
[1739808327139,0.00543281,2760.7,2760.2,0.00543281]
[1739808327840,3.2078,2760.5,2759.3,3.2078]
[1739808328038,3.2078,2760.5,2758.5,20.069]
[1739808328039,0.00543281,2760.7,2760.0,0.72452]
[1739808328241,0.00543281,2760.7,2759.9,3.2078]
[1739808328444,0.00543281,2760.7,2760.2,3.2078]
[1739808329045,0.00543281,2760.7,2760.5,3.2078]
[1739808329842,4.3359,2761.6,2760.6,4.67233444]
[1739808330046,4.3359,2761.6,2760.9,3.2078]
[1739808330638,0.72421,2761.3,2760.4,3.546]
[1739808330950,3.2078,2761.0,2760.3,3.2078]
[1739808331145,0.72434,2760.8,2760.3,3.2078]
[1739808331350,0.00543281,2761.1,2760.3,3.2078]
[1739808331548,0.72431,2760.9,2760.3,3.2078]
[1739808331853,3.2078,2760.9,2760.3,3.2078]
[1739808332052,3.2078,2760.9,2760.2,0.00543281]
[1739808332053,0.72445,2760.3,2760.2,0.00543281]
[1739808332346,3.541,2760.6,2760.2,0.00543281]
[1739808332543,3.93225,2760.3,2760.2,0.00543281]
[1739808332849,3.541,2760.6,2760.2,0.00543281]
[1739808333044,3.2078,2760.7,2760.2,0.00543281]
[1739808333642,0.72445,2760.3,2760.2,0.00543281]
[1739808333842,3.93225,2760.3,2760.2,0.00543281]
[1739808334343,3.2078,2760.3,2760.2,0.00543281]
[1739808334545,3.93225,2760.3,2760.2,0.00543281]
[1739808335147,9.2078,2760.3,2759.5,3.2078]
[1739808335355,3.2078,2760.3,2759.5,3.2078]
[1739808335550,0.72459,2759.8,2759.5,3.2078]
[1739808335751,3.2078,2760.3,2759.5,3.2078]
[1739808336051,3.2078,2760.0,2759.5,3.2078]
[1739808336246,3.54,2760.2,2758.6,4.3419]
[1739808336247,3.2078,2759.6,2758.6,4.3419]
[1739808336453,3.2078,2759.3,2758.5,3.2078]
[1739808336647,3.2078,2759.0,2758.1,3.2078]
[1739808336951,3.544,2759.0,2758.1,3.2078]
[1739808337141,3.2078,2758.8,2758.1,3.2078]
[1739808337342,3.544,2759.0,2757.8,3.2078]
[1739808337343,0.72499,2758.3,2757.8,3.2078]
[1739808337549,0.72499,2758.3,2757.4,4.67233444]
[1739808337550,3.537,2758.4,2757.4,3.2078]
[1739808337748,0.72508,2758.0,2757.8,0.00543281]
[1739808337941,3.93284,2758.1,2757.8,0.00543281]
[1739808338147,3.2078,2758.1,2757.8,0.00543281]
[1739808338346,0.72508,2757.9,2757.8,0.00543281]
[1739808338555,3.2078,2758.1,2756.6,3.2078]
[1739808338846,3.2078,2757.7,2756.6,3.2078]
[1739808339048,3.2078,2757.7,2756.9,3.2078]
[1739808339256,3.532,2757.6,2756.9,3.2078]
[1739808339447,3.2078,2757.7,2757.0,3.2078]
[1739808339643,3.2078,2757.7,2757.0,3.21145508]
[1739808340453,3.2078,2757.7,2757.0,0.00365508]
[1739808341256,3.2078,2757.7,2757.0,3.21145508]
[1739808341756,8.82843281,2758.3,2757.6,4.67233444]
[1739808341757,0.00543281,2758.3,2757.6,4.67233444]
[1739808342050,0.00543281,2758.3,2757.7,3.2078]
[1739808342351,0.00543281,2758.3,2757.4,3.2078]
[1739808342558,0.00543281,2758.3,2757.0,0.00365508]
[1739808342559,3.2078,2757.6,2757.0,3.21145508]
[1739808342751,3.513,2757.7,2757.0,3.21145508]
[1739808342954,3.513,2757.7,2757.3,3.2078]
[1739808343155,0.72516,2757.6,2757.3,3.2078]
[1739808343451,3.513,2757.7,2757.0,0.00365508]
[1739808343649,3.93309,2757.1,2757.0,0.00365508]
[1739808343852,0.72537,2756.9,2756.1,3.2078]
[1739808344055,6.7338,2757.1,2756.1,3.2078]
[1739808344852,3.2078,2756.8,2756.1,3.2078]
[1739808345456,3.21323281,2756.9,2755.7,3.2078]
[1739808345851,0.72541,2756.7,2755.7,3.2078]
[1739808346152,3.21323281,2756.9,2755.7,3.2078]
[1739808346355,3.506,2756.8,2756.3,3.2078]
[1739808346550,0.00543281,2756.9,2756.6,3.2078]
[1739808346856,0.00543281,2756.9,2756.2,3.2078]
[1739808347052,0.00543281,2756.9,2756.5,3.2078]
[1739808347651,0.00543281,2756.9,2756.5,7.88013444]
[1739808347957,0.00543281,2756.9,2756.8,3.2078]
[1739808348153,0.00543281,2756.9,2756.5,7.88013444]
[1739808348351,0.00543281,2756.9,2756.5,3.2078]
[1739808348556,0.73078281,2756.9,2756.5,3.2078]
[1739808348951,0.73078281,2756.9,2756.2,3.2078]
[1739808348952,0.00543281,2756.9,2756.2,3.2078]
[1739808349153,0.00543281,2756.9,2756.5,3.2078]
[1739808349854,0.00543281,2756.9,2756.2,3.2078]
[1739808350050,3.2078,2756.8,2756.2,3.2078]
[1739808350248,3.21323281,2756.9,2756.2,3.2078]
[1739808350652,0.00543281,2756.9,2756.6,0.72542]
[1739808350856,0.00543281,2756.9,2756.8,3.2078]
[1739808351061,4.2658,2758.0,2756.8,3.2078]
[1739808351258,4.2658,2758.0,2757.4,0.7252]
[1739808351561,0.72515,2757.7,2757.2,3.2078]
[1739808351760,3.2078,2758.2,2757.5,3.2078]
[1739808351956,4.2658,2758.9,2758.1,3.2078]
[1739808352158,0.3632,2759.7,2758.4,3.2078]
[1739808352353,3.2078,2759.4,2758.7,7.88013444]
[1739808352658,3.516,2760.1,2758.7,4.67233444]
[1739808352659,0.00543281,2759.3,2758.7,4.67233444]
[1739808352852,0.00543281,2759.3,2758.4,3.2078]
[1739808353055,0.73016281,2759.3,2758.8,0.00543281]
[1739808353257,0.00543281,2759.3,2758.8,0.00543281]
[1739808353460,3.51743281,2759.3,2758.8,0.00543281]
[1739808353960,0.00543281,2759.3,2758.8,0.00543281]
[1739808354163,0.00543281,2759.3,2759.0,3.2078]
[1739808354364,0.00543281,2759.3,2759.0,3.93259]
[1739808354665,0.00543281,2759.3,2759.0,3.2078]
[1739808354857,0.00543281,2759.3,2758.8,0.00543281]
[1739808354858,0.00543281,2759.3,2759.1,3.2078]
[1739808355058,0.00543281,2759.3,2758.8,0.00543281]
[1739808357263,40.8,2759.2,2758.8,0.00543281]
[1739808357462,3.2078,2758.9,2757.7,3.2078]
[1739808357661,0.72495,2758.5,2757.7,3.2078]
[1739808357872,3.2078,2758.3,2757.4,3.2078]
[1739808358066,0.72507,2758.0,2757.4,3.2078]
[1739808358261,0.72504,2758.1,2757.4,3.2078]
[1739808358464,3.2078,2758.8,2757.8,3.2078]
[1739808358761,28.3339,2759.1,2757.3,3.479]
[1739808358762,11.7139,2759.1,2758.4,3.2078]
[1739808358958,0.00543281,2758.6,2758.4,3.2078]
[1739808359765,0.00543281,2758.6,2758.5,0.72493]
[1739808360155,0.00543281,2758.6,2758.4,3.2078]
[1739808361058,0.72497,2758.4,2758.1,3.2078]
[1739808361459,0.72502,2758.2,2757.3,3.2078]
[1739808361659,3.2078,2758.3,2757.6,3.2078]
[1739808361868,3.9328,2758.3,2757.6,3.2078]
[1739808362062,0.00543281,2758.6,2757.9,3.2078]
[1739808362369,0.00543281,2758.6,2758.5,3.2078]
[1739808362667,3.473,2759.6,2758.5,3.2078]
[1739808362868,0.72479,2759.1,2758.8,3.2078]